bitfinex/quotes_BTCUSD_20241022
["timestamp","ask_amount","ask_price","bid_price","bid_amount"]
[1729558906034,0.148863,67176.0,67171.0,0.005]
[1729558906296,0.148863,67176.0,67174.0,0.005]
[1729558906514,0.077,67182.0,67171.0,0.00396916]
[1729558906515,0.077,67182.0,67177.0,0.005]
[1729558906724,0.37198098,67178.0,67177.0,0.005]
[1729558906943,0.077,67182.0,67177.0,0.005]
[1729558906944,0.297703,67181.0,67177.0,0.005]
[1729558907158,0.148856,67179.0,67177.0,0.005]
[1729558907373,0.148856,67179.0,67168.0,0.002]
[1729558907374,0.297717,67178.0,67174.0,0.005]
[1729558907608,0.148864,67175.0,67174.0,0.005]
[1729558907822,0.023,67175.0,67174.0,0.005]
[1729558908040,0.171864,67175.0,67174.0,0.005]
[1729558908469,0.148864,67175.0,67174.0,0.005]
[1729558908688,0.171864,67175.0,67174.0,0.005]
[1729558909789,0.171882,67167.0,67166.0,0.002]
[1729558910745,0.171884,67166.0,67165.0,0.002]
[1729558910967,0.171891,67163.0,67162.0,0.002]
[1729558911832,0.29680094,67163.0,67162.0,0.002]
[1729558912074,0.171891,67163.0,67162.0,0.002]
[1729558912503,0.023,67165.0,67163.0,0.005]
[1729558913185,0.023,67167.0,67163.0,0.005]
[1729558913688,0.171882,67167.0,67166.0,0.002]
[1729558913928,0.03677828,67167.0,67166.0,0.002]
[1729558914177,0.297717,67178.0,67166.0,0.002]
[1729558914178,0.023,67169.0,67168.0,0.005]
[1729558914391,0.171873,67172.0,67169.0,0.002]
[1729558914597,0.171873,67172.0,67168.0,0.005]
[1729558914598,0.023,67170.0,67168.0,0.005]
[1729558914824,0.171878,67169.0,67168.0,0.005]
[1729558915041,0.171878,67169.0,67168.0,0.007]
[1729558915258,0.023,67169.0,67168.0,0.007]
[1729558915906,0.023,67169.0,67168.0,0.008]
[1729558916136,0.023,67170.0,67169.0,0.007]
[1729558916351,0.17011887,67176.0,67169.0,0.007]
[1729558916352,0.023,67172.0,67169.0,0.007]
[1729558916592,0.023,67173.0,67172.0,0.007]
[1729558916825,0.001652,67175.0,67173.0,0.007]
[1729558917055,0.001652,67175.0,67169.0,0.297754]
[1729558917056,0.001652,67175.0,67174.0,0.007]
[1729558917275,0.001652,67175.0,67174.0,0.155867]
[1729558917489,0.001652,67175.0,67174.0,0.30482615]
[1729558917977,0.001652,67175.0,67174.0,0.40482615]
[1729558918415,0.001652,67175.0,67174.0,0.66854276]
[1729558918616,0.001652,67175.0,67174.0,0.41982615]
[1729558919042,0.001652,67175.0,67174.0,0.007]
[1729558919278,0.001652,67175.0,67174.0,0.012]
[1729558919706,0.024652,67175.0,67174.0,0.012]
[1729558920574,0.024652,67175.0,67174.0,0.007]
[1729558920993,0.024652,67175.0,67174.0,0.021]
[1729558921219,0.024652,67175.0,67174.0,0.107]
[1729558921429,0.024652,67175.0,67174.0,0.109]
[1729558921635,0.173516,67175.0,67174.0,0.109]
[1729558921858,0.024652,67175.0,67174.0,0.004]
[1729558922063,0.173516,67175.0,67174.0,0.009]
[1729558922290,0.173516,67175.0,67174.0,0.007]
[1729558922732,0.024652,67175.0,67174.0,0.009]
[1729558923848,0.024652,67175.0,67174.0,0.007]
[1729558924263,0.024652,67175.0,67174.0,0.009]
[1729558924941,0.024652,67175.0,67174.0,0.007]
[1729558925430,0.024652,67175.0,67174.0,0.009]
[1729558926107,0.024652,67175.0,67174.0,0.007]
[1729558927751,0.024652,67175.0,67174.0,0.009]
[1729558927999,0.024652,67175.0,67174.0,0.007]
[1729558928269,0.001652,67175.0,67174.0,0.40482615]
[1729558928495,0.001652,67175.0,67174.0,0.40882615]
[1729558928744,0.001652,67175.0,67174.0,0.40482615]
[1729558928979,0.001652,67175.0,67174.0,0.50745433]
[1729558929189,0.001652,67175.0,67174.0,0.96667094]
[1729558929403,0.001652,67175.0,67174.0,0.96367094]
[1729558930705,0.000826,67184.0,67183.0,0.270847]
[1729558930919,0.000826,67184.0,67183.0,0.41980615]
[1729558931132,0.000826,67184.0,67183.0,0.265847]
[1729558931339,0.000826,67184.0,67183.0,0.255847]
[1729558931590,0.000826,67184.0,67183.0,0.107]
[1729558931827,0.01466229,67184.0,67183.0,0.007]
[1729558932061,0.03766227,67184.0,67183.0,0.007]
[1729558932347,0.0598003,67184.0,67183.0,0.021]
[1729558932558,0.03766227,67184.0,67183.0,0.007]
[1729558932762,0.05982466,67184.0,67183.0,0.021]
[1729558933191,0.03766227,67184.0,67183.0,0.269847]
[1729558933419,0.05984157,67184.0,67183.0,0.121]
[1729558933673,0.46740218,67184.0,67183.0,0.016]
[1729558934105,0.31855818,67184.0,67183.0,0.007]
[1729558934315,0.05984157,67184.0,67183.0,0.155847]
[1729558934521,0.05984157,67184.0,67183.0,0.162847]
[1729558934522,0.03766227,67184.0,67183.0,0.162847]
[1729558934731,0.03766227,67184.0,67183.0,0.155847]
[1729558935155,0.03766227,67184.0,67183.0,0.014]
[1729558935370,0.03766227,67184.0,67183.0,0.007]
[1729558935576,0.03766227,67184.0,67183.0,0.165847]
[1729558936488,0.01466227,67184.0,67183.0,0.31778286]
[1729558936695,0.01466227,67184.0,67183.0,0.31480615]
[1729558937349,0.01466227,67184.0,67183.0,0.30480615]
[1729558937577,0.01466227,67184.0,67183.0,0.31480615]
[1729558937789,0.01466227,67184.0,67183.0,0.41480615]
[1729558938005,0.01466227,67184.0,67183.0,0.53682787]
[1729558938209,0.01466227,67184.0,67183.0,0.42980615]
[1729558938449,0.000826,67184.0,67183.0,0.43180615]
[1729558938879,0.000826,67184.0,67183.0,0.49216176]
[1729558939144,0.000826,67184.0,67183.0,0.46816176]
[1729558939377,0.000826,67184.0,67183.0,0.63112091]
[1729558939875,0.000826,67184.0,67183.0,0.67062091]
[1729558940142,0.000826,67184.0,67183.0,0.67723794]
[1729558940647,0.001686,67196.0,67195.0,0.024]
[1729558940893,0.000826,67197.0,67196.0,0.53153461]
[1729558941142,0.000826,67197.0,67196.0,0.85936175]
[1729558941637,0.000826,67197.0,67196.0,1.04986175]
[1729558941886,0.000826,67197.0,67196.0,1.08936175]
[1729558942117,0.000826,67197.0,67196.0,1.10336175]
[1729558942350,0.000826,67197.0,67196.0,1.08936175]
[1729558942840,0.000826,67197.0,67196.0,1.08736175]
[1729558943554,0.000826,67197.0,67196.0,0.95484937]
[1729558943829,0.000826,67197.0,67196.0,0.95784937]
[1729558944064,0.000826,67197.0,67196.0,0.95684937]
[1729558944542,0.000826,67197.0,67196.0,0.95784937]
[1729558944779,0.000826,67197.0,67196.0,0.92497669]
[1729558945044,0.000826,67197.0,67196.0,1.07393584]
[1729558948252,0.000826,67197.0,67196.0,1.07293584]
[1729558948658,0.000826,67197.0,67196.0,1.07393584]
[1729558948883,0.000826,67197.0,67196.0,1.07293584]
[1729558949328,0.001686,67220.0,67202.0,0.272805]
[1729558949534,0.001686,67220.0,67202.0,0.85340337]
[1729558950375,0.001686,67220.0,67202.0,0.7648632]
[1729558950579,0.001686,67220.0,67202.0,1.0030632]
[1729558951916,0.001686,67220.0,67202.0,1.00529611]
[1729558952111,0.001686,67220.0,67202.0,1.00629611]
[1729558952560,0.001686,67220.0,67202.0,1.00529611]
[1729558952766,0.001686,67220.0,67202.0,1.00629611]
[1729558952984,0.001686,67220.0,67205.0,0.172798]
[1729558953160,0.001686,67220.0,67205.0,0.61707191]
[1729558954366,0.001686,67220.0,67205.0,0.5707163]
[1729558954582,0.001686,67220.0,67205.0,0.57851577]
[1729558954791,0.001686,67220.0,67205.0,0.6246087]
[1729558954992,0.001686,67220.0,67205.0,0.57751577]
[1729558955213,0.001686,67220.0,67205.0,0.57851577]
[1729558955412,0.001686,67220.0,67205.0,0.57751577]
[1729558955857,0.001686,67220.0,67205.0,0.57851577]
[1729558956071,0.001686,67220.0,67205.0,0.57751577]
[1729558956280,0.001686,67220.0,67205.0,0.62360284]
[1729558957585,0.001686,67220.0,67219.0,0.172767]
[1729558957812,0.001686,67220.0,67219.0,0.66868929]
[1729558958489,0.001686,67220.0,67219.0,0.66668929]
[1729558959368,0.001686,67220.0,67219.0,0.68068929]
[1729558959580,0.001686,67220.0,67219.0,0.51051285]
[1729558960900,0.001686,67220.0,67219.0,0.43372615]
[1729558961122,0.001686,67220.0,67219.0,0.41972615]
[1729558961345,0.001686,67220.0,67219.0,0.43372615]
[1729558962351,0.001686,67220.0,67219.0,0.42872615]
[1729558962556,0.001686,67220.0,67219.0,0.42372615]
[1729558962976,0.001686,67220.0,67219.0,0.42872615]
[1729558963401,0.001686,67220.0,67219.0,0.43372615]
[1729558963608,0.001686,67220.0,67219.0,0.60390259]
[1729558964008,0.001686,67220.0,67219.0,0.58990259]
[1729558964459,0.001686,67220.0,67219.0,0.60590259]
[1729558964674,0.001686,67220.0,67219.0,0.75486174]
[1729558965351,0.001686,67220.0,67219.0,0.73886174]
[1729558965569,0.001686,67220.0,67219.0,0.58990259]
[1729558965808,0.001686,67220.0,67219.0,0.60590259]
[1729558966465,0.001686,67220.0,67219.0,0.43372615]
[1729558967584,0.001686,67220.0,67219.0,0.82702557]
[1729558967818,0.001686,67220.0,67219.0,0.97117514]
[1729558968029,0.001686,67220.0,67219.0,1.01067514]
[1729558968920,0.000826,67224.0,67223.0,0.172758]
[1729558969154,0.000826,67224.0,67223.0,0.64100477]
[1729558969368,0.080986,67242.0,67223.0,0.64100477]
[1729558969369,0.001686,67242.0,67239.0,0.022]
[1729558969619,0.98051701,67240.0,67239.0,0.58985859]
[1729558969843,0.98051701,67240.0,67239.0,0.85076659]
[1729558970062,0.98051701,67240.0,67239.0,0.68059015]
[1729558970276,0.98051701,67240.0,67239.0,0.72672711]
[1729558970494,0.98051701,67240.0,67239.0,0.81470329]
[1729558971021,0.92102901,67240.0,67239.0,0.81470329]
[1729558971219,0.83179701,67240.0,67239.0,0.81470329]
[1729558971653,0.83179701,67240.0,67239.0,0.82870329]
[1729558971871,0.83179701,67240.0,67239.0,0.83093478]
[1729558972099,0.83179701,67240.0,67239.0,0.81693478]
[1729558972337,0.83179701,67240.0,67239.0,0.81793478]
[1729558973624,0.83179701,67240.0,67239.0,0.82450401]
[1729558977897,0.83179701,67240.0,67239.0,0.73354096]
[1729558978540,0.83179701,67240.0,67239.0,0.73577244]
[1729558979978,0.83179701,67240.0,67239.0,0.79529544]
[1729558980205,0.83179701,67240.0,67239.0,0.73354096]
[1729558980895,0.83179701,67240.0,67239.0,0.73154096]
[1729558981148,0.83179701,67240.0,67239.0,0.83372881]
[1729558981383,0.83179701,67240.0,67239.0,0.83572881]
[1729558981633,0.83179701,67240.0,67239.0,0.83472881]
[1729558982130,0.83179701,67240.0,67239.0,0.84872881]
[1729558983284,0.83262301,67240.0,67239.0,0.84872881]
[1729558983526,0.83262301,67240.0,67239.0,0.85096041]
[1729558983794,0.62211654,67240.0,67239.0,0.85096041]
[1729558984031,0.59237254,67240.0,67239.0,0.85096041]
[1729558984281,0.0828,67259.0,67258.0,0.024]
[1729558984500,0.001686,67265.0,67264.0,0.270667]
[1729558984723,0.001686,67265.0,67264.0,0.67777877]
[1729558985573,0.001686,67265.0,67264.0,0.40962615]
[1729558985816,0.002686,67265.0,67264.0,0.42162615]
[1729558986237,0.002686,67265.0,67264.0,0.40662615]
[1729558986449,0.292586,67265.0,67264.0,0.40662615]
[1729558987352,0.291586,67265.0,67264.0,0.40462615]
[1729558987599,0.291586,67265.0,67264.0,0.25595915]
[1729558987839,0.291586,67265.0,67264.0,0.26995915]
[1729558987840,0.292586,67265.0,67264.0,0.26995915]
[1729558988066,0.291586,67265.0,67264.0,0.25595915]
[1729558988327,0.292586,67265.0,67264.0,0.014]
[1729558988540,0.292586,67265.0,67249.0,0.22312298]
[1729558988541,0.148685,67256.0,67254.0,0.002]
[1729558988767,0.248687,67255.0,67254.0,0.002]
[1729558988973,0.26252947,67255.0,67254.0,0.007]
[1729558989199,0.11384247,67255.0,67254.0,0.007]
[1729558989434,0.1,67255.0,67254.0,0.007]
[1729558989917,0.11384609,67255.0,67254.0,0.007]
[1729558991016,0.11384609,67255.0,67254.0,0.30464915]
[1729558991257,0.1,67255.0,67254.0,0.30464915]
[1729558991570,0.101,67255.0,67254.0,0.15595915]
[1729558991803,0.11485517,67255.0,67254.0,0.007]
[1729558992285,0.26719468,67255.0,67254.0,0.002]
[1729558992520,0.26719468,67255.0,67251.0,0.005]
[1729558992521,0.023,67253.0,67251.0,0.007]
[1729558992751,0.023,67253.0,67248.0,0.002]
[1729558992752,0.171701,67249.0,67248.0,0.002]
[1729558992996,0.36325262,67249.0,67248.0,0.007]
[1729558993230,0.53046831,67249.0,67248.0,0.007]
[1729558993462,0.38176731,67249.0,67248.0,0.007]
[1729558993919,0.12361469,67249.0,67248.0,0.007]
[1729558994403,0.38176731,67249.0,67248.0,0.005]
[1729558994629,0.38176731,67249.0,67246.0,0.002]
[1729558994630,0.1029,67247.0,67246.0,0.002]
[1729558994855,0.27011969,67247.0,67246.0,0.007]
[1729558995351,0.12141469,67247.0,67246.0,0.007]
[1729558995822,0.12141469,67247.0,67239.0,0.150371]
[1729558995823,0.023,67246.0,67245.0,0.005]
[1729558996057,0.52647431,67246.0,67245.0,0.005]
[1729558996288,0.37776731,67246.0,67245.0,0.007]
[1729558996510,0.37776731,67246.0,67245.0,0.002]
[1729558996971,0.50795962,67246.0,67245.0,0.002]
[1729558997198,0.72519696,67246.0,67245.0,0.002]
[1729558997424,0.57648996,67246.0,67245.0,0.007]
[1729558997909,0.57648996,67246.0,67245.0,0.002]
[1729558998177,0.57648996,67246.0,67245.0,0.009]
[1729558999079,0.57648996,67246.0,67245.0,0.002]
[1729558999080,0.72519696,67246.0,67245.0,0.002]
[1729558999325,0.72519696,67246.0,67239.0,0.00165]
[1729558999326,0.17172,67240.0,67239.0,0.00365]
[1729558999566,0.52710996,67240.0,67239.0,0.00165]
[1729558999795,0.72630996,67240.0,67239.0,0.00165]
[1729559000278,0.72630996,67240.0,67230.0,0.005]
[1729559000279,0.148734,67234.0,67230.0,0.005]
[1729559000535,0.297458,67237.0,67230.0,0.005]
[1729559000536,0.023,67231.0,67230.0,0.005]
[1729559000780,0.03688427,67231.0,67230.0,0.005]
[1729559001015,0.036878,67231.0,67230.0,0.005]
[1729559001257,0.023,67231.0,67230.0,0.005]
[1729559001721,0.023,67231.0,67229.0,0.002]
[1729559001960,0.023,67231.0,67230.0,0.005]
[1729559004474,0.1931852,67231.0,67230.0,0.005]
[1729559004891,0.1931852,67231.0,67230.0,0.007]
[1729559007590,0.1931852,67231.0,67230.0,0.00865]
[1729559010533,0.1931852,67231.0,67230.0,0.00665]
[1729559010979,0.1931852,67231.0,67230.0,0.00865]
[1729559012231,0.3419252,67231.0,67230.0,0.00165]
[1729559012706,0.43348238,67231.0,67230.0,0.00165]
[1729559012937,0.69691963,67231.0,67230.0,0.00165]
[1729559013166,0.62583646,67231.0,67230.0,0.00165]
[1729559014166,0.62583646,67231.0,67216.0,0.22312298]
[1729559014167,0.0782,67228.0,67216.0,0.22812298]
[1729559014388,0.249956,67224.0,67223.0,0.22312298]
[1729559014680,0.249956,67224.0,67214.0,0.002]
[1729559014681,0.0782,67223.0,67214.0,0.002]
[1729559014871,0.023,67224.0,67212.0,0.002]
[1729559014872,0.023,67215.0,67212.0,0.002]
[1729559015104,0.023,67215.0,67206.0,0.148794]
[1729559015105,0.023,67212.0,67209.0,0.005]
[1729559015311,0.148777,67215.0,67206.0,0.002]
[1729559015312,0.1701852,67210.0,67206.0,0.007]
[1729559015527,0.023,67209.0,67207.0,0.001652]
[1729559015741,0.2111,67209.0,67207.0,0.001652]
[1729559016233,0.171791,67208.0,67207.0,0.001652]
[1729559016472,0.18564953,67208.0,67207.0,0.001652]
[1729559016706,0.19030549,67208.0,67207.0,0.001652]
[1729559016946,0.18564953,67208.0,67207.0,0.001652]
[1729559017426,0.19030547,67208.0,67207.0,0.001652]
[1729559017905,0.04251447,67208.0,67207.0,0.003652]
[1729559018161,0.023,67210.0,67208.0,0.005]
[1729559018417,0.0794,67211.0,67210.0,0.007]
[1729559018678,0.148753,67226.0,67210.0,0.007]
[1729559018679,0.02218347,67225.0,67222.0,0.002]
[1729559018923,0.39330818,67223.0,67222.0,0.002]
[1729559019154,0.2641513,67223.0,67222.0,0.002]
[1729559019386,0.26880647,67223.0,67222.0,0.002]
[1729559019859,0.29180647,67223.0,67222.0,0.002]
[1729559020096,0.023,67222.0,67219.0,0.002]
[1729559020328,0.023,67220.0,67219.0,0.002]
[1729559020581,0.04152127,67220.0,67219.0,0.002]
[1729559021539,0.0368661,67220.0,67219.0,0.155767]
[1729559021773,0.01852127,67220.0,67219.0,0.40472615]
[1729559021999,0.1701852,67231.0,67230.0,0.002]
[1729559022236,0.0791,67232.0,67231.0,0.002]
[1729559022513,0.26781896,67232.0,67231.0,0.002]
[1729559022975,0.29081896,67232.0,67231.0,0.002]
[1729559023648,0.36674323,67232.0,67226.0,0.105]
[1729559023889,0.14876,67222.0,67221.0,0.002]
[1729559024122,0.14876,67222.0,67221.0,0.52784513]
[1729559024123,0.03688209,67222.0,67221.0,0.52784513]
[1729559024343,0.1701852,67227.0,67225.0,0.150754]
[1729559024344,0.023,67226.0,67225.0,0.150754]
[1729559024578,0.04153956,67226.0,67225.0,0.002]
[1729559025490,0.06376108,67226.0,67225.0,0.002]
[1729559025714,0.023,67223.0,67221.0,0.002]
[1729559025958,0.06376108,67226.0,67219.0,0.002]
[1729559025959,0.18872476,67222.0,67219.0,0.002]
[1729559026203,0.023,67220.0,67219.0,0.007]
[1729559026420,0.04153956,67220.0,67219.0,0.007]
[1729559027546,0.04253956,67220.0,67219.0,0.007]
[1729559028428,0.06478178,67220.0,67219.0,0.007]
[1729559028635,0.04253956,67220.0,67219.0,0.007]
[1729559029069,0.04253956,67220.0,67219.0,0.155767]
[1729559029073,0.04253956,67220.0,67219.0,0.255767]
[1729559029699,0.04153956,67220.0,67219.0,0.102]
[1729559029914,0.023,67219.0,67215.0,0.002]
[1729559030162,0.023,67214.0,67209.0,0.005]
[1729559030392,0.1701852,67210.0,67209.0,0.005]
[1729559030623,0.23397221,67210.0,67209.0,0.005]
[1729559031296,0.23397221,67210.0,67209.0,0.007]
[1729559031538,0.23397221,67210.0,67209.0,0.155789]
[1729559031785,0.04078701,67210.0,67209.0,0.40474815]
[1729559032001,0.01853956,67210.0,67209.0,0.40474815]
[1729559032223,0.04153956,67210.0,67209.0,0.107]
[1729559032873,0.04153956,67210.0,67209.0,0.007]
[1729559033089,0.06377886,67210.0,67209.0,0.005]
[1729559033299,0.06377789,67210.0,67209.0,0.005]
[1729559033523,0.06477789,67210.0,67209.0,0.116]
[1729559034436,0.06477789,67210.0,67209.0,0.264789]
[1729559034655,0.04255345,67210.0,67209.0,0.264789]
[1729559034870,0.04255345,67210.0,67209.0,0.266789]
[1729559035086,0.0425543,67210.0,67209.0,0.266789]
[1729559036216,0.0425543,67210.0,67209.0,0.118]
[1729559036437,0.0425543,67210.0,67209.0,0.018]
[1729559037162,0.0425543,67210.0,67209.0,0.118]
[1729559037385,0.0195543,67210.0,67209.0,0.41574815]
[1729559037822,0.01956188,67210.0,67209.0,0.41574815]
[1729559041030,0.0149124,67210.0,67209.0,0.41574815]
[1729559041244,0.01956774,67210.0,67209.0,0.41574815]
[1729559042279,0.01956774,67210.0,67209.0,0.26860915]
[1729559042906,0.01956774,67210.0,67209.0,0.41739815]
[1729559043715,0.01957306,67210.0,67209.0,0.41739815]
[1729559044427,0.01491789,67210.0,67209.0,0.41739815]
[1729559044644,0.001,67210.0,67209.0,0.53382137]
[1729559044793,0.001,67210.0,67209.0,0.57524277]
[1729559044992,0.001,67210.0,67209.0,0.47381955]
[1729559045190,0.001,67210.0,67209.0,0.51332511]
[1729559045387,0.001,67210.0,67209.0,0.51989262]
[1729559046022,0.001,67210.0,67209.0,0.52489262]
[1729559046231,0.001,67210.0,67209.0,0.70108915]
[1729559046457,0.001,67210.0,67209.0,0.57437765]
[1729559046662,0.04084086,67222.0,67221.0,0.005]
[1729559046880,0.26396384,67222.0,67221.0,0.007]
[1729559047044,0.04084086,67222.0,67221.0,0.007]
[1729559047420,0.05197461,67222.0,67221.0,0.007]
[1729559047640,0.07497461,67222.0,67221.0,0.007]
[1729559047868,0.26312823,67222.0,67221.0,0.005]
[1729559048304,0.22373685,67222.0,67221.0,0.005]
[1729559050106,0.66232205,67222.0,67221.0,0.005]
[1729559050487,0.66732205,67222.0,67221.0,0.005]
[1729559051179,0.148787,67210.0,67209.0,0.00165]
[1729559051393,0.30356385,67210.0,67209.0,0.00165]
[1729559053766,0.30756385,67210.0,67209.0,0.00165]
[1729559053992,0.15877685,67210.0,67209.0,0.00165]
[1729559054209,0.15477685,67210.0,67209.0,0.00165]
[1729559054448,0.16377685,67210.0,67209.0,0.00265]
[1729559054661,0.15477685,67210.0,67209.0,0.00165]
[1729559055082,0.15977685,67210.0,67209.0,0.00165]
[1729559055301,0.15977685,67210.0,67209.0,0.00365]
[1729559055549,0.14350772,67210.0,67209.0,0.153439]
[1729559055784,0.13237316,67210.0,67209.0,0.153439]
[1729559056014,0.02491821,67210.0,67209.0,0.40739815]
[1729559056254,0.011,67210.0,67209.0,0.40739815]
[1729559056471,0.011,67210.0,67209.0,0.42239815]
[1729559056954,0.00465461,67225.0,67224.0,0.150756]
[1729559057180,0.0818,67232.0,67229.0,0.002]
[1729559057406,0.01939896,67230.0,67229.0,0.002]
[1729559058349,0.02039896,67230.0,67229.0,0.002]
[1729559058577,0.04239906,67230.0,67229.0,0.002]
[1729559060155,0.04239906,67230.0,67229.0,0.005]
[1729559060372,0.04239906,67230.0,67229.0,0.002]
[1729559061276,0.04239906,67230.0,67229.0,0.007]
[1729559061496,0.03774455,67230.0,67229.0,0.007]
[1729559061722,0.03774455,67230.0,67229.0,0.156745]
[1729559061963,0.03774455,67230.0,67229.0,0.008]
[1729559062180,0.03774455,67230.0,67229.0,0.156745]
[1729559062450,0.000825,67230.0,67229.0,0.46112915]
[1729559062653,0.000825,67230.0,67229.0,0.40570415]
[1729559063307,0.000825,67230.0,67229.0,0.40470415]
[1729559063734,0.000825,67230.0,67229.0,0.40870415]
[1729559063952,0.000825,67230.0,67229.0,0.40470415]
[1729559064423,0.001825,67230.0,67229.0,0.92676086]
[1729559064629,0.001825,67230.0,67229.0,0.93376086]
[1729559064630,0.000825,67230.0,67229.0,0.93376086]
[1729559064847,0.001825,67230.0,67229.0,1.0778435]
[1729559065101,0.000825,67249.0,67238.0,0.02]
[1729559065339,0.000825,67249.0,67238.0,0.59186935]
[1729559065816,0.000825,67249.0,67238.0,0.63619878]
[1729559066053,0.000825,67249.0,67238.0,0.59186935]
[1729559066260,0.000825,67249.0,67238.0,0.63619207]
[1729559066520,0.000825,67249.0,67238.0,0.7851523]
[1729559066743,0.000825,67249.0,67238.0,0.7408285]
[1729559067161,0.005825,67239.0,67238.0,0.7418285]
[1729559067442,0.005825,67239.0,67238.0,0.74853656]
[1729559067877,0.000825,67239.0,67238.0,0.74753656]
[1729559068093,0.000825,67239.0,67238.0,1.10452176]
[1729559068318,0.000825,67239.0,67238.0,1.20764556]
[1729559068319,0.00045303,67239.0,67238.0,1.20764556]
[1729559068530,0.00045303,67239.0,67238.0,1.03746036]
[1729559068741,0.00545303,67239.0,67238.0,0.99413656]
[1729559070060,0.00545303,67239.0,67238.0,0.61319221]
[1729559070061,0.00027398,67239.0,67238.0,0.61319221]
[1729559070320,0.00027398,67239.0,67238.0,0.42639221]
[1729559070524,0.00027398,67239.0,67238.0,0.59757741]
[1729559070525,0.00527398,67239.0,67238.0,0.59757741]
[1729559070755,0.00027398,67239.0,67238.0,0.64745372]
[1729559070964,0.00527398,67239.0,67238.0,0.64845372]
[1729559071650,0.00527398,67239.0,67238.0,0.65045372]
[1729559071896,0.00527398,67239.0,67238.0,0.64845372]
[1729559072109,0.00527398,67239.0,67238.0,0.42239221]
[1729559072325,0.00527398,67239.0,67238.0,0.42068415]
[1729559073011,0.00527398,67239.0,67238.0,0.30568415]
[1729559073235,0.00027398,67239.0,67238.0,0.30468415]
[1729559073749,0.00027398,67239.0,67238.0,0.31868415]
[1729559073974,0.00027398,67239.0,67238.0,0.30468415]
[1729559074192,0.00027398,67239.0,67238.0,0.31868415]
[1729559074416,0.00027398,67239.0,67238.0,0.30468415]
[1729559074622,0.00027398,67239.0,67238.0,0.42629137]
[1729559074843,0.00027398,67239.0,67238.0,0.52629137]
[1729559075056,0.00027398,67239.0,67238.0,0.40968415]
[1729559075274,0.00027398,67239.0,67238.0,0.42268415]
[1729559076133,0.00027398,67239.0,67238.0,0.41768415]
[1729559076587,0.00027398,67239.0,67238.0,0.40468415]
[1729559077008,0.00127398,67239.0,67238.0,0.41468415]
[1729559078337,0.00127398,67239.0,67238.0,0.41633415]
[1729559079647,0.00127398,67239.0,67238.0,0.4632325]
[1729559079870,0.00127398,67239.0,67238.0,0.41633415]
[1729559080322,0.00127398,67239.0,67238.0,0.01365]
[1729559080538,0.10067398,67239.0,67238.0,0.01365]
[1729559081223,0.24839698,67239.0,67238.0,0.00365]
[1729559081432,0.09967398,67239.0,67238.0,0.00365]
[1729559081679,0.10067398,67239.0,67238.0,0.01365]
[1729559081864,0.24939698,67239.0,67238.0,0.01365]
[1729559081993,0.24939698,67239.0,67238.0,0.01165]
[1729559082654,0.24839698,67239.0,67238.0,0.00165]
[1729559083121,0.38159977,67239.0,67238.0,0.01065]
[1729559083465,0.38159977,67239.0,67238.0,0.00165]
[1729559083466,0.26223733,67239.0,67238.0,0.00165]
[1729559083875,0.26323733,67239.0,67238.0,0.00765]
[1729559084081,0.26223733,67239.0,67238.0,0.00165]
[1729559084287,0.26689145,67239.0,67238.0,0.00165]
[1729559084463,0.26689145,67239.0,67238.0,0.00465]
[1729559084694,0.26689145,67239.0,67238.0,0.00165]
[1729559085295,0.28908449,67239.0,67238.0,0.00165]
[1729559086138,0.28908449,67239.0,67238.0,0.00365]
[1729559086351,0.28908449,67239.0,67238.0,0.00165]
[1729559086711,0.29008449,67239.0,67238.0,0.00165]
[1729559087353,0.14136149,67239.0,67238.0,0.00165]
[1729559087563,0.11916845,67239.0,67238.0,0.00165]
[1729559087762,0.11916845,67239.0,67238.0,0.00365]
[1729559087995,0.09616845,67239.0,67238.0,0.00365]
[1729559088145,0.09616811,67239.0,67238.0,0.00365]
[1729559088347,0.24023733,67239.0,67238.0,0.00165]
[1729559088518,0.09151433,67239.0,67238.0,0.00165]
[1729559089204,0.11451433,67239.0,67238.0,0.00365]
[1729559089425,0.11351433,67239.0,67238.0,0.00365]
[1729559090084,0.11451433,67239.0,67238.0,0.00365]
[1729559090290,0.11351433,67239.0,67238.0,0.00365]
[1729559090724,0.11351433,67239.0,67238.0,0.00665]
[1729559090935,0.09967398,67239.0,67238.0,0.00665]
[1729559091146,0.11355877,67239.0,67238.0,0.00365]
[1729559091347,0.11455877,67239.0,67238.0,0.01165]
[1729559091782,0.10067398,67239.0,67238.0,0.01165]
[1729559091997,0.10067398,67239.0,67238.0,0.00965]
[1729559091998,0.29397974,67239.0,67238.0,0.00965]
[1729559092213,0.29015724,67239.0,67238.0,0.00965]
[1729559092669,0.26793755,67239.0,67238.0,0.00965]
[1729559094498,0.26793951,67239.0,67238.0,0.00965]
[1729559098285,0.29016134,67239.0,67238.0,0.00965]
[1729559098741,0.30127837,67239.0,67238.0,0.00965]
[1729559098970,0.29016134,67239.0,67238.0,0.00965]
[1729559099206,0.14143834,67239.0,67238.0,0.00965]
[1729559100146,0.15256257,67239.0,67238.0,0.00965]
[1729559100378,0.14143834,67239.0,67238.0,0.00965]
[1729559100599,0.14143834,67239.0,67238.0,0.01165]
[1729559100840,0.14143834,67239.0,67238.0,0.00965]
[1729559101065,0.14143825,67239.0,67238.0,0.00965]
[1729559101287,0.29016125,67239.0,67238.0,0.00965]
[1729559101504,0.15256653,67239.0,67238.0,0.00965]
[1729559101945,0.14143825,67239.0,67238.0,0.00965]
[1729559102166,0.15256957,67239.0,67238.0,0.00965]
[1729559104498,0.11180887,67239.0,67238.0,0.00965]
[1729559104731,0.15265121,67239.0,67238.0,0.00965]
[1729559106626,0.15265121,67239.0,67238.0,0.01165]
[1729559107095,0.15265615,67239.0,67238.0,0.01165]
[1729559107332,0.01984645,67239.0,67238.0,0.33587245]